bitfinex-derivatives/quotes_ETHF0:USTF0_20260214
["timestamp","ask_amount","ask_price","bid_price","bid_amount"]
[1771071479607,1.01670581,2094.5,2093.7,0.95810226]
[1771071484210,1.01670581,2094.5,2093.4,0.97409032]
[1771071486517,0.97560905,2094.3,2093.4,0.97409032]
[1771071487116,40.8,2094.2,2093.4,0.97409032]
[1771071487415,0.97560905,2094.1,2093.4,0.97409032]
[1771071489520,0.97560905,2094.1,2093.1,0.97802511]
[1771071492818,0.97560905,2093.9,2093.1,0.97802511]
[1771071493016,0.98072947,2093.9,2093.1,0.97802511]
[1771071499626,0.00512042,2093.9,2093.1,0.97802511]
[1771071500132,0.97560905,2094.2,2093.1,1.21702511]
[1771071500324,0.97560905,2094.2,2093.3,0.97409032]
[1771071500724,0.97560905,2094.4,2093.5,0.97409032]
[1771071500926,0.97560905,2094.7,2093.7,0.97409032]
[1771071501126,0.98026267,2094.7,2093.7,0.97409032]
[1771071509837,0.98026267,2094.7,2094.1,0.97409032]
[1771071510731,0.98026267,2094.7,2093.6,0.97409032]
[1771071510935,0.98026267,2094.7,2093.7,0.23894]
[1771071511133,0.98026267,2094.7,2093.8,0.97409032]
[1771071515035,0.98026267,2094.7,2094.0,1.01106051]
[1771071515036,0.00465362,2094.7,2094.0,1.01106051]
[1771071515341,0.95553124,2094.7,2094.0,1.01106051]
[1771071520146,0.00465362,2094.7,2094.2,1.01106051]
[1771071522650,0.93943846,2094.7,2094.2,1.01106051]
[1771071524450,0.93943846,2094.7,2094.0,0.92997191]
[1771071531560,0.93943846,2094.7,2093.9,0.92997191]
[1771071531958,0.93943846,2094.7,2094.0,0.92997191]
[1771071532761,0.00465362,2094.7,2094.4,0.92997191]
[1771071533061,0.93943846,2094.7,2094.4,0.92997191]
[1771071533960,0.93478484,2095.1,2094.4,0.92997191]
[1771071534161,0.93478484,2094.9,2094.4,0.92997191]
[1771071534660,0.93478484,2094.9,2094.1,1.62193599]
[1771071534866,0.94089035,2094.9,2094.1,0.92997191]
[1771071540568,0.93478484,2094.6,2093.9,4.89097191]
[1771071540768,0.93478484,2094.6,2094.0,0.92997191]
[1771071541365,0.93478484,2094.6,2093.8,0.95770142]
[1771071542569,0.91773455,2094.4,2093.7,0.95770142]
[1771071543368,0.91773455,2094.4,2093.5,0.95770142]
[1771071543571,0.91773455,2094.2,2093.3,1.19668142]
[1771071544675,0.91773455,2094.2,2093.3,0.95770142]
[1771071546776,0.91773455,2094.0,2093.3,0.95770142]
[1771071547779,0.91773455,2094.0,2093.2,0.95770142]
[1771071548282,0.91773455,2094.0,2093.6,0.97289973]
[1771071548677,0.91773455,2094.0,2093.8,0.02279755]
[1771071549780,0.91773455,2094.0,2093.9,0.02279755]
[1771071550281,0.91773455,2094.0,2093.6,0.95770142]
[1771071550580,0.91773455,2094.5,2093.6,0.95770142]
[1771071554788,0.91773455,2094.5,2093.5,0.95770142]
[1771071556784,0.91773455,2094.5,2093.6,0.95770142]
[1771071561689,0.91773455,2094.3,2093.6,0.95770142]
[1771071561986,0.91773455,2094.3,2093.3,0.95770142]
[1771071563192,0.91773455,2094.2,2093.3,0.95770142]
[1771071563687,41.71773455,2094.3,2093.5,0.95770142]
[1771071563989,0.91773455,2094.4,2093.5,0.95770142]
[1771071564591,0.91773455,2094.7,2093.6,0.95770142]
[1771071565494,0.92384006,2094.9,2094.0,0.95770142]
[1771071570297,0.92384006,2094.9,2094.2,0.95770142]
[1771071573896,0.00610551,2094.9,2094.2,0.95770142]
[1771071575200,0.91355723,2094.9,2094.2,0.95770142]
[1771071576605,0.90745172,2095.3,2094.4,0.95338534]
[1771071577501,0.91266089,2095.3,2094.4,0.95338534]
[1771071586517,0.91266089,2095.3,2094.6,0.96398833]
[1771071586711,0.91266089,2095.3,2094.6,0.97004964]
[1771071593623,0.00520917,2095.3,2094.6,0.97004964]
[1771071594219,0.91846982,2095.3,2094.6,0.97004964]
[1771071600336,0.91846982,2095.3,2094.6,0.00606131]
[1771071608548,0.91846982,2095.3,2094.6,0.96869113]
[1771071608847,0.91846982,2095.3,2094.7,0.96262982]
[1771071610643,0.00520917,2095.3,2094.9,0.96262982]
[1771071610953,0.92194423,2095.7,2095.1,0.96262982]
[1771071611845,0.92698178,2095.7,2095.1,0.96262982]
[1771071615845,0.92194423,2095.9,2095.3,0.96262982]
[1771071616253,0.92194423,2095.9,2095.5,0.96262982]
[1771071616254,0.91724285,2095.9,2095.5,0.96262982]
[1771071616450,0.89444516,2095.9,2095.5,0.96262982]
[1771071616854,0.00424156,2095.9,2095.5,0.96262982]
[1771071617155,0.92618579,2095.9,2095.5,0.96262982]
[1771071620856,0.92618579,2095.9,2095.1,0.96262982]
[1771071623959,0.92618579,2095.9,2095.3,0.96262982]
[1771071626358,0.00424156,2095.9,2095.5,0.96262982]
[1771071629564,0.92194423,2096.4,2095.7,0.96262982]
[1771071630461,0.92607664,2096.4,2095.7,0.96262982]
[1771071630862,0.92194423,2096.1,2095.6,0.23872]
[1771071631058,1.62091138,2096.8,2095.5,0.96262982]
[1771071631059,0.90254991,2097.6,2096.7,0.87624492]
[1771071631262,0.90254991,2097.3,2096.7,4.83724492]
[1771071631458,0.90254991,2097.3,2096.7,0.87624492]
[1771071632067,0.90647266,2097.3,2096.7,0.88136267]
[1771071632969,0.90647266,2097.3,2096.8,0.87624492]
[1771071634671,0.90647266,2097.3,2096.7,1.11995267]
[1771071635073,0.90647266,2097.3,2096.8,0.87624492]
[1771071636471,0.00392275,2097.3,2096.9,0.87624492]
[1771071637674,0.90647266,2097.3,2096.9,0.87624492]
[1771071639871,0.90647266,2097.3,2096.7,0.24370775]
[1771071640264,0.90647266,2097.3,2096.7,1.19678163]
[1771071641064,0.90647266,2097.3,2096.7,0.24370775]
[1771071642475,0.90647266,2097.3,2096.7,1.19678163]
[1771071642974,0.90647266,2097.3,2096.8,0.95307388]
[1771071643268,0.90647266,2097.3,2096.7,0.24370775]
[1771071644576,0.90647266,2097.3,2096.7,0.00511775]
[1771071644773,0.95141145,2097.1,2096.4,0.95307388]
[1771071645678,0.95141145,2097.1,2096.4,0.95839404]
[1771071645874,0.95141145,2097.1,2096.6,0.95307388]
[1771071647080,0.95141145,2097.1,2096.5,0.23862]
[1771071647081,0.95141145,2097.1,2096.5,1.19169388]
[1771071647477,0.95141145,2097.2,2096.6,0.95307388]
[1771071652791,0.95141145,2097.2,2096.5,0.23862]
[1771071654091,0.95141145,2097.2,2096.5,1.19169388]
[1771071654691,0.95141145,2097.2,2096.6,0.95307388]
[1771071657291,0.95141145,2097.1,2096.5,1.19169388]
[1771071657492,0.95141145,2097.1,2096.4,0.00532016]
[1771071657790,0.95141145,2097.1,2096.4,0.95839404]
[1771071658791,0.95141145,2097.1,2096.4,0.00532016]
[1771071661689,0.93840801,2096.9,2096.4,0.00532016]
[1771071662395,0.93840801,2096.7,2096.0,1.17188996]
[1771071662789,0.93840801,2096.5,2095.8,0.93321996]
[1771071663397,0.93840801,2096.5,2095.8,0.93766293]
[1771071665200,0.93840801,2096.5,2095.8,0.00444297]
[1771071669999,0.93840801,2096.5,2095.8,0.93766293]
[1771071670802,0.93840801,2096.5,2095.9,0.93321996]
[1771071671205,0.37852597,2097.1,2095.9,0.93321996]
[1771071671602,40.8,2097.0,2095.9,0.93321996]
[1771071671807,0.38398794,2096.9,2095.9,0.93321996]
[1771071677410,0.38087835,2096.9,2096.3,0.93321996]
[1771071678505,40.8,2097.0,2096.3,0.93321996]
[1771071678809,41.18060205,2097.0,2096.3,0.93321996]
[1771071679707,0.38060205,2097.0,2096.3,0.93321996]
[1771071679908,0.35316793,2097.2,2096.3,0.93321996]
[1771071680217,40.8,2097.1,2096.3,0.93321996]
[1771071680412,0.35333074,2097.0,2096.3,0.93321996]
[1771071684714,0.35338468,2097.1,2096.3,0.93321996]
[1771071687320,41.15923599,2097.3,2096.3,0.93321996]
[1771071687616,0.35923599,2097.3,2096.3,0.93321996]
[1771071689519,41.15923599,2097.3,2096.3,0.93321996]
[1771071689819,0.35420796,2097.2,2096.3,0.93321996]
[1771071690920,0.35420796,2097.2,2096.4,0.23863]
[1771071691117,0.35420796,2097.2,2096.5,0.93321996]
[1771071697523,0.35420796,2097.2,2096.7,0.92867314]
[1771071700325,0.01014639,2097.2,2096.7,0.92867314]
[1771071701323,0.07719484,2097.9,2097.1,0.90886444]
[1771071701833,0.07712382,2097.8,2097.1,0.90886444]
[1771071702125,0.07712382,2097.8,2097.0,0.23856]
[1771071702328,0.08098811,2097.8,2096.7,0.90886444]
[1771071702630,0.08098811,2097.8,2096.7,4.86786444]
[1771071702830,0.08098811,2097.8,2096.8,0.90886444]
[1771071705732,0.08098811,2097.8,2096.9,0.90886444]
[1771071719439,0.00386429,2097.8,2097.1,0.90886444]
[1771071720038,0.07368286,2098.3,2097.3,0.90886444]
[1771071720333,0.07370141,2098.1,2097.3,0.90886444]
[1771071720728,0.07365361,2097.9,2097.0,0.90886444]
[1771071721134,0.00348341,2097.9,2097.2,0.90886444]
[1771071721535,0.10654944,2097.9,2097.2,0.90886444]
[1771071721730,0.00348341,2097.9,2097.2,0.90886444]
[1771071722440,0.10650786,2098.1,2097.2,0.90886444]
[1771071722837,0.10645036,2098.0,2097.2,0.90886444]
[1771071723245,0.11238319,2098.0,2097.2,0.90886444]
[1771071734255,1.61717678,2097.8,2097.1,0.92466709]
[1771071734556,0.16017751,2097.7,2097.1,0.92466709]
[1771071735360,0.16064791,2097.9,2097.1,0.92466709]
[1771071737262,0.15230231,2097.8,2097.1,0.92466709]
[1771071738561,0.15227043,2097.6,2097.1,0.92466709]
[1771071738951,0.15222599,2097.8,2097.1,0.92466709]
[1771071741260,0.15176953,2097.6,2097.1,0.92466709]
[1771071741852,0.15176953,2097.6,2097.0,0.00604118]
[1771071742053,0.15176953,2097.6,2097.0,0.93070827]
[1771071745663,0.15620524,2097.2,2096.7,0.92466709]
[1771071745868,0.15620524,2097.6,2096.7,0.92466709]
[1771071746165,0.15620524,2097.6,2096.9,0.92466709]
[1771071746762,0.15620524,2097.6,2096.9,0.92818136]
[1771071749664,0.15167142,2097.8,2096.9,0.92818136]
[1771071749870,0.15167142,2097.8,2097.1,0.92466709]
[1771071750568,0.15168241,2097.9,2097.1,0.92466709]
[1771071750770,15.27956744,2098.0,2097.3,0.92466709]
[1771071751771,0.15756744,2098.0,2097.3,0.92466709]
[1771071753268,0.15781311,2097.9,2097.3,0.92466709]
[1771071758370,1.62310961,2098.0,2097.3,0.92466709]
[1771071758371,0.00593283,2098.0,2097.3,0.92466709]
[1771071759878,0.14704591,2098.0,2097.3,0.92466709]
[1771071762477,0.00593283,2098.0,2097.3,0.92466709]
[1771071764583,0.15260594,2098.0,2097.3,0.92466709]
[1771071765880,0.00593283,2098.0,2097.5,0.93201236]
[1771071766172,55.924,2098.2,2097.5,0.93201236]
[1771071766478,40.8,2098.2,2097.5,0.93201236]
[1771071767176,40.80527325,2098.2,2097.7,0.93201236]
[1771071768089,0.15206147,2098.5,2097.7,0.93201236]
[1771071768589,40.8,2098.4,2097.7,0.93201236]
[1771071769179,40.80394112,2098.4,2097.7,0.93201236]
[1771071769882,41.65378505,2098.4,2097.7,0.93201236]
[1771071772288,40.80394112,2098.4,2097.7,0.93201236]
[1771071772884,41.65378505,2098.4,2097.7,0.93201236]
[1771071773585,40.80394112,2098.4,2097.7,0.93201236]
[1771071773782,0.00394112,2098.4,2097.7,0.93201236]
[1771071773989,0.84984393,2099.0,2098.1,0.93201236]
[1771071774184,41.64984393,2098.9,2098.1,0.93201236]
[1771071774887,41.65512589,2098.9,2098.1,0.93201236]
[1771071775491,0.84984393,2098.8,2098.1,0.93201236]
[1771071778888,0.84984393,2098.7,2098.1,0.93201236]
[1771071780884,0.84984393,2098.5,2097.6,0.93201236]
[1771071781088,0.93316289,2098.7,2097.8,0.93201236]
[1771071782795,0.93316289,2098.6,2097.8,0.93201236]
[1771071782994,0.93316289,2098.4,2097.8,0.93201236]
[1771071784290,0.93316289,2098.6,2097.8,0.93201236]
[1771071786190,0.93316289,2098.7,2098.0,0.91916094]
[1771071786494,16.22716289,2098.8,2098.0,0.91916094]
[1771071786796,0.93316289,2098.6,2098.0,0.91916094]
[1771071787495,16.22716289,2098.8,2098.0,0.91916094]
[1771071787688,16.22716289,2098.8,2098.1,0.91916094]
[1771071788094,0.93316289,2098.7,2098.1,0.91916094]
[1771071793599,0.93316289,2098.7,2097.6,0.91916094]
[1771071794902,0.93316289,2098.5,2097.6,0.91916094]
[1771071795291,0.93316289,2098.3,2097.6,0.91916094]
[1771071795494,0.93316289,2098.2,2097.1,0.91916094]
[1771071805405,0.93316289,2097.9,2097.1,0.91916094]
[1771071805607,40.8,2097.8,2096.9,0.92267521]
[1771071805913,0.93316289,2097.7,2096.9,0.92267521]
[1771071808310,0.93316289,2097.6,2096.9,0.00351427]
[1771071811217,0.92470991,2097.4,2096.9,0.90867578]
[1771071811415,0.9300321,2097.4,2096.9,0.90867578]
[1771071815615,0.9300321,2097.4,2096.9,0.00351427]
[1771071815816,0.9300321,2097.4,2096.7,0.90516151]
[1771071816712,0.92470991,2097.2,2096.7,0.91042956]
[1771071817913,0.92470991,2097.2,2096.6,0.90516151]
[1771071818514,0.92470991,2097.2,2096.1,0.90516151]
[1771071818716,0.92470991,2097.2,2096.1,0.91024554]
[1771071819918,41.72470991,2097.3,2096.1,0.91024554]
[1771071820119,41.72470991,2097.3,2096.4,0.90516151]
[1771071820120,40.8,2097.3,2096.4,0.90516151]
[1771071820313,0.87538349,2097.4,2096.4,0.90516151]
[1771071829412,0.00532219,2097.4,2096.6,2.49694076]
[1771071829717,0.00532219,2097.4,2096.7,0.88095327]
[1771071830322,0.87538349,2097.4,2096.7,0.88095327]
[1771071830521,0.87538349,2097.4,2096.8,0.88095327]
[1771071833321,0.00532219,2097.4,2096.8,0.88095327]
[1771071835320,0.8700613,2098.2,2097.2,0.88095327]
[1771071836520,0.87377533,2098.2,2097.2,0.88095327]
[1771071841220,0.91589622,2098.0,2097.2,0.88095327]
[1771071852735,0.91589622,2098.0,2096.7,9.97031066]
[1771071853033,0.91589622,2098.0,2096.8,0.93092361]
[1771071854829,1.6177657,2097.8,2096.8,0.93092361]
[1771071855032,0.91589622,2097.5,2096.8,0.93092361]
[1771071856632,0.91589622,2097.3,2096.8,0.93092361]
[1771071856837,0.91589622,2097.3,2096.5,0.93092361]
[1771071861138,0.91589622,2097.3,2096.3,0.93092361]
[1771071862335,0.91589622,2097.1,2096.3,0.93092361]
[1771071865845,1.6177657,2097.6,2096.3,0.93092361]
[1771071865846,0.91589622,2096.9,2096.3,0.93092361]
[1771071866439,0.91589622,2096.7,2096.2,0.93092361]
[1771071866645,0.92148963,2096.7,2096.1,0.93600764]
[1771071867042,0.91589622,2096.5,2096.1,0.93600764]
[1771071867244,0.91589622,2096.5,2095.8,0.88819291]
[1771071868138,0.91589622,2096.5,2095.8,0.8938181]
[1771071872655,0.95723139,2096.3,2095.8,0.8938181]
[1771071874348,0.95723139,2096.3,2095.8,0.00562519]
[1771071874550,0.95723139,2096.3,2095.6,0.89889392]
[1771071874551,0.95723139,2096.1,2095.6,0.89889392]
[1771071875443,0.95723139,2096.1,2095.6,0.90242847]
[1771071876650,0.95723139,2096.0,2095.3,0.90447176]
[1771071877755,0.95723139,2096.0,2095.3,0.90853688]
[1771071883362,0.95723139,2096.0,2095.5,0.91128424]
[1771071883856,0.91805079,2096.1,2095.7,0.91128424]
[1771071884064,0.91805079,2096.3,2095.7,0.91128424]
[1771071885860,0.91805079,2096.5,2095.8,1.6177657]
[1771071886165,0.91805079,2096.5,2095.9,0.91128424]
[1771071886358,0.91805079,2096.5,2095.7,0.91128424]
[1771071887958,40.8,2096.6,2095.7,0.91128424]
[1771071888264,0.91805079,2096.5,2095.9,0.91128424]
[1771071890562,0.91805079,2096.6,2096.1,0.91128424]
[1771071895365,0.91805079,2096.6,2095.9,0.91128424]
[1771071897258,0.9236442,2096.7,2095.9,0.91128424]
[1771071897769,0.91805079,2096.4,2095.9,0.91128424]
[1771071899568,0.91805079,2096.4,2095.8,0.91128424]
[1771071904469,0.96120732,2096.7,2096.0,0.95579035]
[1771071906474,0.95561391,2096.6,2095.9,0.95579035]
[1771071907567,0.00559341,2096.7,2095.9,1.19447035]
[1771071907772,0.95561391,2096.6,2095.9,1.19447035]
[1771071908676,0.95561391,2096.6,2096.0,0.95579035]
[1771071911678,0.95561391,2096.5,2095.8,0.95579035]
[1771071917683,0.95561391,2096.5,2095.5,0.95579035]
[1771071921486,0.95561391,2096.5,2095.6,0.95579035]
[1771071922380,0.00559341,2096.7,2095.6,0.95579035]
[1771071922585,0.96120732,2096.7,2095.6,0.95579035]
[1771071933190,0.97286817,2097.2,2096.2,0.98254977]
[1771071933380,0.97286817,2097.0,2096.4,0.98254977]
[1771071934092,0.97838114,2097.0,2096.4,0.98254977]
[1771071942894,40.8,2096.9,2096.4,0.98254977]
[1771071943095,0.97079035,2096.8,2096.4,0.98254977]
[1771071943293,0.97079035,2096.8,2096.3,0.95967454]
[1771071944992,40.8,2096.9,2096.3,0.95967454]
[1771071945394,0.97630332,2097.0,2096.3,0.95967454]
[1771071945896,40.80551297,2097.0,2096.3,0.95967454]
[1771071946100,0.97079035,2096.9,2096.3,0.95967454]
[1771071953996,0.00551297,2097.0,2096.3,0.95967454]
[1771071954503,0.97630332,2097.0,2096.3,0.95967454]
[1771071955307,0.97630332,2097.0,2096.2,0.95967454]
[1771071959800,0.97079035,2096.8,2096.2,0.95967454]
[1771071960106,0.19536068,2096.8,2096.2,0.95967454]
[1771071966811,0.19536068,2096.8,2096.1,0.95771432]
[1771071967416,0.8930005,2096.6,2096.1,0.95771432]
[1771071970021,0.11747624,2096.6,2096.1,0.95771432]
[1771071977629,40.8,2096.7,2096.1,0.95771432]
[1771071977927,0.8930005,2096.8,2096.2,0.95771432]
[1771071978230,17.0790005,2096.9,2096.2,0.95771432]
[1771071979228,0.00551297,2097.0,2096.2,0.95771432]
[1771071979535,0.89851347,2097.0,2096.2,0.95771432]
[1771071980628,0.00551297,2097.0,2096.4,0.95771432]
[1771071981230,0.00551297,2097.0,2096.6,0.95771432]
[1771071981527,0.8930005,2097.4,2096.7,1.61918207]
[1771071981836,0.8930005,2097.4,2096.6,0.95771432]
[1771071982031,40.8,2097.3,2096.6,0.95771432]
[1771071982235,0.8930005,2097.2,2096.6,0.95771432]
[1771071982534,0.89878744,2097.2,2096.6,0.95771432]
[1771071982738,0.8930005,2097.0,2096.1,0.95771432]
[1771071987742,0.8930005,2096.8,2096.1,0.95771432]
[1771071988629,0.00578694,2097.2,2096.1,0.95771432]
[1771071988936,0.8930005,2097.0,2096.3,0.95771432]
[1771071989142,41.6930005,2097.0,2096.3,0.95771432]
[1771071989438,0.8930005,2096.9,2096.3,0.95771432]
[1771072000443,0.93853204,2096.8,2096.1,0.91975524]
[1771072011451,0.93853204,2096.9,2096.3,0.91975524]
[1771072012050,40.8,2097.1,2096.5,0.91975524]
[1771072012051,41.73853204,2097.1,2096.5,0.91975524]
[1771072012547,0.93853204,2097.0,2096.3,0.91975524]
[1771072014951,0.00578694,2097.2,2096.8,0.91975524]
[1771072015152,0.00578694,2097.2,2096.8,0.92425508]
[1771072015454,40.8,2097.3,2096.8,0.92425508]
[1771072016454,41.74244505,2097.3,2096.8,0.92425508]
[1771072016647,0.93853204,2097.2,2096.8,0.92425508]
[1771072017049,40.80391301,2097.3,2096.8,0.92425508]
[1771072017251,0.93853204,2097.2,2096.8,0.92425508]
[1771072017453,41.74244505,2097.3,2096.8,0.92425508]
[1771072019556,0.93853204,2097.2,2096.8,0.92425508]
[1771072022156,0.93853204,2097.2,2096.8,0.00449984]
[1771072022456,0.93853204,2097.2,2096.8,0.91892604]
[1771072023857,40.80391301,2097.3,2096.8,0.91892604]
[1771072024056,41.74090702,2097.3,2096.8,0.91892604]
[1771072024456,0.93699401,2097.2,2096.8,0.91892604]
[1771072026060,0.93699401,2097.2,2096.8,0.00449984]
[1771072026359,0.93699401,2097.2,2096.6,0.9144262]
[1771072027559,0.93699401,2097.2,2096.6,0.91937796]
[1771072031760,0.93699401,2097.2,2096.6,0.00495176]
[1771072032262,0.93699401,2097.2,2096.6,0.91937796]
[1771072038066,0.93699401,2097.2,2096.6,0.00495176]
[1771072039372,0.93699401,2097.0,2096.2,4.8734262]
[1771072039672,0.93699401,2097.0,2096.3,0.9144262]
[1771072040564,0.93699401,2097.0,2096.3,0.91837708]
[1771072043169,0.93699401,2097.0,2096.1,0.9144262]
[1771072043869,0.93699401,2097.0,2095.6,0.9144262]
[1771072044073,0.93699401,2096.8,2095.6,0.9144262]
[1771072044374,0.93699401,2096.8,2095.6,0.91878623]
[1771072044571,0.93699401,2096.8,2095.1,1.61836387]
[1771072044572,0.93699401,2096.1,2094.5,7.82047482]
[1771072044776,0.93699401,2096.1,2094.4,0.9977909]
[1771072044777,0.00243073,2095.6,2094.4,0.9977909]
[1771072044975,0.00243073,2095.4,2094.4,0.9977909]
[1771072045173,0.00243073,2095.2,2094.4,0.9977909]
[1771072045473,40.8,2095.3,2094.4,0.9977909]
[1771072045672,40.80561463,2095.3,2094.4,1.00148466]
[1771072046671,0.00561463,2095.3,2094.5,1.00441332]
[1771072047477,40.8,2095.6,2094.8,1.00622286]
[1771072047681,0.23863,2096.4,2094.8,1.00622286]
[1771072047983,16.752,2096.3,2094.8,1.00622286]
[1771072048175,40.8,2096.2,2094.8,1.00622286]
[1771072048579,40.80511776,2096.2,2094.8,1.00622286]
[1771072049776,0.00108409,2096.1,2094.8,1.00622286]
[1771072051177,0.00452926,2096.0,2094.8,1.00622286]
[1771072051583,40.80511776,2096.2,2095.0,1.00695592]
[1771072051778,0.00612164,2096.2,2095.1,0.23878]
[1771072051981,0.00612164,2096.2,2095.2,1.00695592]
[1771072052378,0.00100388,2096.7,2095.6,1.00456387]
[1771072053285,0.00652168,2096.7,2095.6,1.00456387]
[1771072054180,0.00652168,2096.7,2095.8,1.00807245]
[1771072054379,2.3697089,2096.3,2094.4,0.00369376]
[1771072054583,0.23868,2096.0,2094.4,1.01192959]
[1771072054779,0.00173373,2095.8,2094.4,1.01192959]
[1771072054985,0.00173373,2095.6,2094.4,1.01192959]
[1771072055379,0.00173373,2095.6,2094.4,0.00369376]
[1771072055586,0.00173373,2095.6,2094.4,1.03955084]
[1771072056784,3.959,2095.5,2094.4,1.03955084]
[1771072058289,40.8,2095.4,2094.4,1.03955084]
[1771072058885,16.822,2095.3,2094.4,1.03955084]
[1771072059986,16.825,2095.3,2094.4,1.03955084]
[1771072060986,40.8,2095.4,2094.4,1.03955084]
[1771072065195,16.835,2095.3,2094.4,1.03955084]
[1771072067992,16.843,2095.2,2094.4,1.03955084]
[1771072068295,16.84783833,2095.2,2094.4,1.03955084]
[1771072068991,0.00483833,2095.2,2094.4,1.03955084]
[1771072069196,16.85183833,2095.2,2094.4,1.03955084]
[1771072069699,0.00483833,2095.2,2094.4,1.03955084]
[1771072069897,16.85283833,2095.2,2094.4,1.03955084]
[1771072071003,16.85583833,2095.2,2094.4,1.03955084]
[1771072072903,16.86483833,2095.2,2094.4,1.03955084]
[1771072074903,0.00483833,2095.2,2094.4,1.03955084]
[1771072081405,0.00483833,2095.2,2094.4,0.97955084]
[1771072082310,0.00483833,2095.2,2094.4,0.98293398]
[1771072084204,6.24282224,2095.1,2094.4,0.98293398]
[1771072084405,0.00483833,2095.2,2094.4,0.98293398]
[1771072084605,6.24267026,2095.1,2094.4,0.98293398]
[1771072084807,0.00483833,2095.2,2094.4,0.98293398]
[1771072085011,6.24252166,2095.1,2094.4,0.98293398]
[1771072085210,0.00483833,2095.2,2094.4,0.98293398]
[1771072085411,6.24199977,2095.1,2094.4,0.98293398]
[1771072085612,6.24199977,2095.0,2094.4,0.98293398]
[1771072085813,0.00483833,2095.2,2094.4,0.98293398]
[1771072086009,6.24201414,2095.1,2094.4,0.98293398]
[1771072086209,6.24201414,2095.0,2094.4,0.98293398]
[1771072086410,0.00483833,2095.2,2094.4,0.98293398]
[1771072086610,6.24115741,2095.1,2094.4,0.98293398]
[1771072086814,6.24115741,2095.0,2094.4,0.98293398]
[1771072087013,0.00483833,2095.2,2094.4,0.00338314]
[1771072087214,6.24094407,2095.1,2094.4,0.00338314]
[1771072087416,6.24094407,2095.0,2094.4,0.00338314]
[1771072087611,0.00483833,2095.2,2094.4,0.00338314]
[1771072087915,6.24031108,2095.1,2094.4,0.00338314]
[1771072088113,6.24031108,2095.0,2094.4,1.03636538]
[1771072088313,0.00483833,2095.2,2094.4,1.03636538]
[1771072088513,10.22302792,2095.2,2094.4,1.03636538]
[1771072088714,6.23930173,2095.1,2094.4,1.03636538]
[1771072090517,6.23758871,2095.0,2094.4,1.03636538]
[1771072090715,0.00483833,2095.2,2094.4,1.03636538]
[1771072090916,6.23758577,2095.1,2094.4,1.03636538]
[1771072091115,6.23758577,2095.0,2094.4,1.03636538]
[1771072091312,0.00483833,2095.2,2094.4,1.03636538]
[1771072091512,6.23733952,2095.1,2094.4,1.03636538]
[1771072091713,6.23733952,2095.0,2094.4,1.03636538]
[1771072092016,0.00483833,2095.2,2094.4,1.03636538]
[1771072092217,6.23779401,2095.1,2094.4,1.03636538]
[1771072092422,6.23779401,2095.0,2094.4,1.03636538]
[1771072092716,0.00483833,2095.2,2094.4,1.03636538]
[1771072092916,6.23768318,2095.1,2094.4,1.03636538]
[1771072093112,6.23768318,2095.0,2094.4,1.03636538]
[1771072093312,0.00483833,2095.2,2094.4,1.03636538]
[1771072093511,6.23832366,2095.1,2094.4,0.00338314]
[1771072093712,6.23832366,2095.0,2094.4,0.00338314]
[1771072093912,6.23832366,2094.9,2094.4,0.00338314]
[1771072094108,0.00483833,2095.2,2094.4,0.00338314]
[1771072094419,6.23796316,2095.1,2094.4,0.00338314]
[1771072094619,6.23796316,2095.0,2094.4,0.00338314]
[1771072094818,0.00483833,2095.2,2094.3,1.03486154]
[1771072095116,6.23793816,2095.1,2094.3,1.03486154]
[1771072095315,6.23793816,2095.0,2094.3,1.03486154]
[1771072095517,0.00483833,2095.2,2094.3,1.03486154]
[1771072095715,6.23743417,2095.1,2094.3,1.03486154]
[1771072095914,6.23743417,2095.0,2094.3,1.03969506]
[1771072096114,0.00483833,2095.2,2094.3,1.03969506]
[1771072096315,6.23694545,2095.1,2094.3,1.03969506]
[1771072096615,6.23694545,2095.0,2094.3,1.03969506]
[1771072096816,0.00483833,2095.2,2094.3,1.03969506]
[1771072097015,6.23727584,2095.1,2094.3,1.03969506]
[1771072097217,6.23727584,2095.0,2094.3,1.03969506]
[1771072097417,0.00483833,2095.2,2094.3,1.03969506]
[1771072097617,6.23703121,2095.1,2094.3,1.03969506]
[1771072097816,6.23703121,2095.0,2094.3,1.03969506]
[1771072098017,0.00483833,2095.2,2094.3,1.03969506]
[1771072098217,6.23697134,2095.1,2094.3,1.03969506]
[1771072098417,6.23697134,2095.0,2094.3,1.03969506]
[1771072098620,0.00483833,2095.2,2094.3,1.03969506]
[1771072098819,6.23678735,2095.1,2094.3,1.03969506]
[1771072099018,6.23678735,2095.0,2094.3,1.03969506]
[1771072099219,0.00483833,2095.2,2094.3,1.03969506]
[1771072099422,6.23661305,2095.1,2094.3,1.03969506]
[1771072099622,6.23661305,2095.0,2094.3,1.03969506]
[1771072099822,0.00483833,2095.2,2094.3,1.03969506]
[1771072100023,6.23661569,2095.1,2094.3,1.03969506]
[1771072100223,6.23661569,2095.0,2094.3,1.03969506]
[1771072100423,16.924,2094.9,2094.3,1.03969506]
[1771072104022,0.00483833,2095.2,2094.3,1.03969506]
[1771072104225,23.18208657,2095.1,2094.3,1.03969506]
[1771072104422,16.945,2095.1,2094.3,1.03969506]
[1771072106032,6.23733684,2095.0,2094.3,1.03969506]
[1771072106225,16.945,2095.1,2094.3,1.03969506]
[1771072106528,6.23807534,2095.0,2094.3,1.03969506]
[1771072106729,16.945,2095.1,2094.3,1.03969506]
[1771072107036,6.23681318,2095.0,2094.3,1.03969506]
[1771072107327,16.945,2095.1,2094.3,1.03969506]
[1771072107531,6.23619021,2095.0,2094.3,1.03969506]
[1771072107726,16.945,2095.1,2094.3,1.03969506]
[1771072107926,6.23621278,2095.0,2094.3,1.03969506]
[1771072108126,16.945,2095.1,2093.9,1.0581182]
[1771072108330,6.23523861,2095.0,2093.9,1.0581182]
[1771072108635,6.23523861,2094.9,2093.9,1.0581182]
[1771072108822,16.945,2095.1,2093.9,1.0581182]
[1771072109026,6.23479138,2095.0,2093.9,1.06368146]
[1771072109230,6.23479138,2094.9,2093.9,1.06368146]
[1771072109433,16.945,2095.1,2093.9,1.06368146]
[1771072109634,6.23465876,2095.0,2093.9,1.06368146]
[1771072109931,6.23465876,2094.9,2093.9,1.06368146]
[1771072110132,16.945,2095.1,2093.9,1.06368146]
[1771072110332,6.23413572,2095.0,2093.9,1.06368146]
[1771072110532,6.23413572,2094.9,2093.9,1.06368146]
[1771072110733,16.945,2095.1,2093.9,1.06368146]
[1771072110923,6.23616721,2095.0,2093.9,1.06368146]
[1771072111128,6.23616721,2094.9,2093.9,1.06368146]
[1771072111329,16.945,2095.1,2093.9,1.06368146]
[1771072111532,6.22394073,2095.0,2093.9,1.06368146]
[1771072111730,6.22394073,2094.9,2093.9,1.06368146]
[1771072111930,16.945,2095.1,2093.9,1.06368146]
[1771072112131,6.22441132,2095.0,2093.9,1.06368146]
[1771072112332,6.22441132,2094.9,2093.9,1.06368146]
[1771072112531,16.945,2095.1,2093.9,1.06368146]
[1771072112735,6.22472938,2095.0,2093.9,1.06368146]
[1771072113031,1.62259791,2094.5,2093.9,1.06368146]